bitfinex-derivatives/quotes_BTCF0:USTF0_20260119
["timestamp","ask_amount","ask_price","bid_price","bid_amount"]
[1768828653551,0.21090222,92997.0,92981.0,0.09684]
[1768828653759,0.11554922,92995.0,92981.0,0.09684]
[1768828654142,0.11554922,92995.0,92989.0,0.01076]
[1768828654458,0.11554922,92995.0,92982.0,0.010761]
[1768828654756,0.095353,93003.0,92996.0,0.01076]
[1768828655256,0.00016131,93004.0,93000.0,0.010759]
[1768828655462,0.09684,93008.0,93004.0,0.010759]
[1768828655661,0.09684,93008.0,93003.0,0.010759]
[1768828655851,0.09684,93008.0,93001.0,0.010759]
[1768828656158,0.09684,93008.0,92991.0,0.01076]
[1768828656366,0.09684,93008.0,93000.0,0.010759]
[1768828656567,0.09684,93008.0,92991.0,0.01076]
[1768828656760,0.09684,93008.0,93002.0,0.010759]
[1768828657253,0.095353,93017.0,93006.0,0.010758]
[1768828657452,0.11971591,93016.0,93006.0,0.010758]
[1768828657651,0.03363291,93015.0,93004.0,0.010759]
[1768828657846,0.02287591,93014.0,92997.0,0.010759]
[1768828658043,0.02287591,93013.0,92997.0,0.010759]
[1768828658247,0.02287591,93012.0,92997.0,0.010759]
[1768828658448,0.095353,93006.0,92994.0,0.01076]
[1768828658645,0.095353,93004.0,92984.0,0.002366]
[1768828659049,0.095353,93004.0,92993.0,0.01076]
[1768828659254,0.08970217,93003.0,92993.0,0.01076]
[1768828660166,0.08970217,93003.0,92996.0,0.01076]
[1768828660346,0.08970217,93003.0,92993.0,0.01076]
[1768828662159,0.0901663,93005.0,92988.0,0.09659588]
[1768828662366,0.0901663,93005.0,92986.0,0.010761]
[1768828662963,0.0901663,93005.0,92995.0,0.01076]
[1768828663464,0.0901663,93005.0,92986.0,0.010761]
[1768828663664,0.0901663,92996.0,92984.0,0.002366]
[1768828663956,0.0794053,93004.0,92992.0,0.01076]
[1768828664661,0.0794053,93004.0,92988.0,0.01076]
[1768828665155,0.0794053,93004.0,92990.0,0.01076]
[1768828666059,0.06912583,93002.0,92989.0,0.01076]
[1768828667462,0.06912583,93002.0,92984.0,0.002366]
[1768828668057,0.06592135,93006.0,92987.0,0.09659588]
[1768828668255,0.00016131,93014.0,92993.0,0.01076]
[1768828668256,0.09684,93005.0,92993.0,0.01076]
[1768828668464,0.09684,93004.0,92993.0,0.01076]
[1768828668856,0.16183509,93004.0,92993.0,0.01076]
[1768828669060,0.06499509,93003.0,92993.0,0.01076]
[1768828669254,0.06499509,93003.0,92990.0,0.01076]
[1768828671462,0.06499509,93003.0,92992.0,0.01076]
[1768828671864,0.06499509,93003.0,92988.0,0.09659588]
[1768828672066,0.06499509,93003.0,92992.0,0.01076]
[1768828672561,0.06499509,93003.0,92988.0,0.09659588]
[1768828672562,0.06499509,93003.0,92991.0,0.01076]
[1768828673570,0.06499509,93003.0,92993.0,0.01076]
[1768828674872,0.24559428,93003.0,92993.0,0.01076]
[1768828677872,0.24559428,93003.0,92988.0,0.09659588]
[1768828678173,0.18059919,93000.0,92992.0,0.01076]
[1768828678472,0.18059919,93000.0,92984.0,0.06047506]
[1768828678975,0.18059919,93000.0,92985.0,0.010761]
[1768828680266,0.18059919,93000.0,92985.0,0.10423967]
[1768828680781,0.06499509,93003.0,92985.0,0.10423967]
[1768828681078,0.18059919,93000.0,92985.0,0.10423967]
[1768828681463,0.18059919,93000.0,92984.0,0.06047506]
[1768828681464,0.0691496,93009.0,92990.0,0.11679285]
[1768828681677,0.03951746,93016.0,93005.0,0.010758]
[1768828681894,0.11971716,93013.0,93005.0,0.010758]
[1768828682175,0.02287716,93012.0,93005.0,0.010758]
[1768828683667,0.09684,93016.0,93002.0,0.09347867]
[1768828683869,0.09684,93023.0,93015.0,0.010757]
[1768828684273,0.00236447,93044.0,93013.0,0.18059919]
[1768828684274,0.0387871,93040.0,93013.0,0.18059919]
[1768828684572,0.0387871,93040.0,93011.0,0.09347867]
[1768828684573,0.18059919,93040.0,93030.0,0.010756]
[1768828684774,0.27743919,93040.0,93028.0,0.010756]
[1768828684977,0.27743919,93040.0,93025.0,0.010756]
[1768828685363,0.28819419,93040.0,93022.0,0.09347867]
[1768828685580,0.0541416,93044.0,93033.0,0.010755]
[1768828685885,0.27743919,93043.0,93033.0,0.010755]
[1768828686172,0.09684,93043.0,93033.0,0.010755]
[1768828686364,0.09684,93043.0,93033.0,0.01390321]
[1768828686567,0.09684,93043.0,93027.0,0.09347867]
[1768828687369,0.09684,93043.0,93031.0,0.010756]
[1768828687982,0.00236447,93044.0,93027.0,0.10763207]
[1768828687983,0.09920447,93044.0,93027.0,0.10763207]
[1768828688977,0.09920447,93044.0,93031.0,0.010756]
[1768828689367,0.10995847,93044.0,93027.0,0.09347867]
[1768828689566,0.18059919,93040.0,93023.0,0.13038442]
[1768828689771,0.18059919,93040.0,93030.0,0.010756]
[1768828689972,0.18059919,93040.0,93023.0,0.13038442]
[1768828690174,0.18059919,93040.0,93023.0,0.22386309]
[1768828690873,0.18059919,93040.0,93030.0,0.010756]
[1768828691074,0.18059919,93040.0,93023.0,0.22386309]
[1768828692583,0.18059919,93040.0,93030.0,0.010756]
[1768828692783,0.18059919,93040.0,93023.0,0.22386309]
[1768828693485,0.18059919,93040.0,93030.0,0.010756]
[1768828693670,0.18059919,93040.0,93023.0,0.22386309]
[1768828694684,0.18059919,93040.0,93034.0,0.010755]
[1768828694884,0.09920447,93044.0,93034.0,0.010755]
[1768828695085,4.7e-07,93044.0,93031.0,0.21027152]
[1768828695381,4.7e-07,93044.0,93038.0,0.010755]
[1768828695971,4.7e-07,93044.0,93034.0,0.010755]
[1768828697182,4.7e-07,93044.0,93036.0,0.010755]
[1768828698576,4.7e-07,93044.0,93035.0,0.010755]
[1768828699184,4.7e-07,93044.0,93037.0,0.010755]
[1768828700988,4.7e-07,93044.0,93030.0,0.21027152]
[1768828701186,4.7e-07,93044.0,93032.0,0.09347867]
[1768828701892,4.7e-07,93044.0,93035.0,0.010755]
[1768828703190,4.7e-07,93044.0,93032.0,0.09347867]
[1768828704588,4.7e-07,93044.0,93034.0,0.010755]
[1768828705677,4.7e-07,93044.0,93032.0,0.09347867]
[1768828707284,4.7e-07,93044.0,93034.0,0.010755]
[1768828707690,4.7e-07,93044.0,93033.0,0.010755]
[1768828707986,0.010755,93037.0,93029.0,0.00016122]
[1768828708187,0.010755,93037.0,93025.0,0.10302636]
[1768828708691,0.010755,93037.0,93025.0,0.09227036]
[1768828708896,0.010755,93036.0,93025.0,0.09227036]
[1768828709186,0.010755,93039.0,93025.0,0.09227036]
[1768828709491,0.010755,93037.0,93025.0,0.09227036]
[1768828710286,0.010755,93033.0,93025.0,0.09227036]
[1768828710486,0.010755,93033.0,93021.0,0.12461682]
[1768828710688,0.010755,93036.0,93023.0,0.010757]
[1768828710883,0.010755,93034.0,93021.0,0.11385982]
[1768828711288,0.010755,93034.0,93021.0,0.12461682]
[1768828712693,0.010755,93036.0,93023.0,0.010756]
[1768828713782,0.27739919,93040.0,93021.0,0.20613018]
[1768828714695,0.010755,93033.0,93021.0,0.20613018]
[1768828716387,0.010755,93033.0,93020.0,0.010757]
[1768828717497,0.010756,93030.0,93018.0,0.09227036]
[1768828717692,0.010755,93033.0,93019.0,0.010757]
[1768828718091,0.010755,93035.0,93021.0,0.21688718]
[1768828719193,0.010755,93035.0,93022.0,0.010757]
[1768828719405,0.27739919,93040.0,93024.0,0.010756]
[1768828719599,0.010755,93036.0,93022.0,0.010757]
[1768828723800,0.010755,93035.0,93022.0,0.010757]
[1768828724001,0.010755,93034.0,93021.0,0.20613018]
[1768828725102,0.010755,93033.0,93021.0,0.20613018]
[1768828725303,0.18059919,93031.0,93021.0,0.20613018]
[1768828727598,0.18059919,93031.0,93022.0,0.010757]
[1768828727810,0.18059919,93031.0,93021.0,0.20613018]
[1768828729297,0.18059919,93031.0,93017.0,0.07171442]
[1768828729709,0.18059919,93031.0,93002.0,0.010759]
[1768828729710,0.18059919,93031.0,93014.0,0.05805535]
[1768828729916,0.010757,93022.0,93005.0,0.07743013]
[1768828730118,0.18059919,93020.0,93009.0,0.010758]
[1768828730718,0.00016122,93023.0,93005.0,0.01339429]
[1768828730914,0.00016122,93023.0,93004.0,0.09055462]
[1768828731109,0.00016122,93023.0,93004.0,0.01312449]
[1768828731315,0.00016122,93023.0,93013.0,0.10880758]
[1768828732613,0.00016122,93023.0,93013.0,0.11956558]
[1768828732820,0.00016122,93023.0,93015.0,0.010757]
[1768828734022,0.00016122,93023.0,93013.0,0.11956558]
[1768828734929,0.00016122,93023.0,93015.0,0.010757]
[1768828735431,0.00016122,93023.0,93013.0,0.20768479]
[1768828735628,0.00016122,93023.0,93004.0,0.01568411]
[1768828735629,0.010757,93019.0,93006.0,0.09887721]
[1768828735830,0.010757,93019.0,93007.0,0.010758]
[1768828736220,0.010757,93019.0,93007.0,0.12029426]
[1768828736620,0.010757,93019.0,93007.0,0.10953626]
[1768828737029,0.00016122,93023.0,93004.0,0.21077896]
[1768828737238,0.010757,93016.0,93004.0,0.22387224]
[1768828737527,0.0968,93018.0,93004.0,0.22387224]
[1768828737921,0.0968,93018.0,93005.0,0.010759]
[1768828738123,0.0968,93018.0,93004.0,0.22387224]
[1768828738328,0.0968,93018.0,93005.0,0.10953626]
[1768828739435,0.0968,93018.0,93007.0,0.010758]
[1768828740737,0.0968,93018.0,93005.0,0.10953626]
[1768828741337,0.0968,93018.0,93006.0,0.010758]
[1768828741838,0.0968,93018.0,93008.0,0.010758]
[1768828746235,0.0968,93018.0,93005.0,0.10953626]
[1768828746441,0.0968,93018.0,93004.0,0.11433598]
[1768828746827,0.107557,93018.0,93004.0,0.12509498]
[1768828747031,0.010758,93014.0,93004.0,0.1012427]
[1768828747232,0.010758,93014.0,93004.0,0.00236549]
[1768828748636,0.0968,93018.0,93004.0,0.00236549]
[1768828748836,0.11277972,93017.0,93004.0,0.00236549]
[1768828749532,0.11277972,93013.0,92993.0,0.19567721]
[1768828749732,0.010758,93008.0,92995.0,0.01076]
[1768828750044,0.11277972,93011.0,92995.0,0.01076]
[1768828750433,0.11277972,93011.0,92994.0,0.01076]
[1768828750941,0.010758,93010.0,92995.0,0.01076]
[1768828751135,0.21270191,93014.0,92993.0,0.12255141]
[1768828751335,0.21270191,93014.0,92989.0,0.00236588]
[1768828751336,0.11277972,93009.0,92989.0,0.11190214]
[1768828751543,0.010759,93003.0,92989.0,0.11190214]
[1768828751738,0.010759,93003.0,92989.0,0.00236588]
[1768828752048,0.11277972,93007.0,92989.0,0.01312588]
[1768828752337,0.010759,93002.0,92989.0,0.00236588]
[1768828752542,0.11277972,93003.0,92989.0,0.01587446]
[1768828752543,0.010759,93000.0,92989.0,0.01587446]
[1768828752745,0.010759,93000.0,92989.0,0.00236588]
[1768828753156,0.010759,92998.0,92989.0,0.00236588]
[1768828753439,0.12353872,92998.0,92989.0,1e-08]
[1768828753641,0.11277972,93002.0,92989.0,1e-08]
[1768828754036,0.010759,93001.0,92989.0,1e-08]
[1768828754346,0.11277972,93002.0,92989.0,1e-08]
[1768828754548,0.19672219,93003.0,92989.0,0.01076001]
[1768828754747,0.19672219,93003.0,92989.0,1e-08]
[1768828755841,0.010759,93002.0,92989.0,1e-08]
[1768828756340,0.19672219,93003.0,92989.0,1e-08]
[1768828756845,0.107559,93003.0,92989.0,0.01076001]
[1768828757249,0.0968,93003.0,92991.0,0.01076]
[1768828757551,0.0968,93003.0,92989.0,1e-08]
[1768828758550,0.010759,93002.0,92989.0,1e-08]
[1768828759548,0.0968,93003.0,92990.0,0.01076]
[1768828759549,0.107559,93003.0,92990.0,0.01076]
[1768828759850,0.107559,93003.0,92989.0,1e-08]
[1768828760047,0.010757,93018.0,93000.0,0.10953626]
[1768828760245,0.0968,93017.0,93001.0,0.10953626]
[1768828760551,0.010758,93013.0,93000.0,0.09887721]
[1768828761151,0.010758,93010.0,92995.0,0.01076]
[1768828763149,0.010758,93010.0,92995.0,0.1295029]
[1768828764555,0.010758,93010.0,92997.0,0.01076]
[1768828765657,0.010758,93014.0,92995.0,0.21059098]
[1768828765952,0.010758,93014.0,92997.0,0.1187429]
[1768828766253,0.12653523,93016.0,93002.0,0.010759]
[1768828766451,0.010758,93014.0,93002.0,0.010759]
[1768828766652,0.010758,93014.0,93000.0,0.010759]
[1768828767449,0.010758,93014.0,93002.0,0.010759]
[1768828767755,0.11577823,93016.0,93003.0,0.010759]
[1768828768551,0.010758,93013.0,92997.0,0.1187429]
[1768828768756,0.010758,93013.0,92996.0,0.09184808]
[1768828769153,0.12653523,93016.0,93000.0,0.010759]
[1768828769456,0.12653523,93016.0,93002.0,0.010759]
[1768828770156,0.010758,93014.0,93002.0,0.010759]
[1768828770559,0.010758,93014.0,92999.0,0.010759]
[1768828771760,0.010758,93014.0,93001.0,0.010759]
[1768828772253,0.11577823,93016.0,92999.0,0.010759]
[1768828772466,0.010758,93013.0,93000.0,0.010759]
[1768828772962,0.12653523,93016.0,93002.0,0.010759]
[1768828773258,0.010758,93014.0,93002.0,0.010759]
[1768828773459,0.11577823,93016.0,93002.0,0.010759]
[1768828773851,0.010757,93016.0,93003.0,0.010759]
[1768828774160,0.010758,93014.0,93001.0,0.010759]
[1768828774561,0.11577823,93016.0,92998.0,0.010759]
[1768828774953,0.010758,93011.0,92998.0,0.010759]
[1768828775158,0.11577823,93016.0,92994.0,0.1187429]
[1768828775159,0.21261823,93014.0,92994.0,0.1187429]
[1768828775362,0.010758,93008.0,92996.0,0.01076]
[1768828776562,0.11577823,93013.0,92993.0,0.01076]
[1768828776756,0.010758,93008.0,92995.0,0.01076]
[1768828780065,0.21261823,93013.0,92992.0,0.09184808]
[1768828780066,0.21261823,93013.0,92992.0,0.20364268]
[1768828780257,0.11191769,93012.0,92992.0,0.20364268]
[1768828780458,0.010759,93006.0,92994.0,0.01076]
[1768828781567,0.010759,93006.0,92992.0,0.21440268]
[1768828782762,0.010759,93006.0,92989.0,1e-08]
[1768828782763,0.20281757,93010.0,92989.0,1e-08]
[1768828782960,0.11191769,93002.0,92989.0,1e-08]
[1768828783359,0.21357657,93001.0,92989.0,1e-08]
[1768828783666,0.01076,92993.0,92989.0,1e-08]
[1768828783869,0.11191769,92998.0,92989.0,1e-08]
[1768828784254,0.01076,92994.0,92989.0,1e-08]
[1768828784659,0.01076,92993.0,92989.0,1e-08]
[1768828786766,0.01076,92996.0,92989.0,1e-08]
[1768828788864,0.20281757,93000.0,92989.0,1e-08]
[1768828789073,0.11191769,92999.0,92989.0,1e-08]
[1768828789270,0.01076,92995.0,92989.0,1e-08]
[1768828790870,0.01076,92994.0,92989.0,1e-08]
[1768828792666,0.11191769,92999.0,92989.0,1e-08]
[1768828792872,0.01076,92997.0,92989.0,1e-08]
[1768828793072,0.01076,92996.0,92989.0,1e-08]
[1768828793372,0.11191769,92999.0,92989.0,1e-08]
[1768828793562,0.01076,92992.0,92989.0,1e-08]
[1768828793973,0.11946196,92998.0,92980.0,0.10964637]
[1768828794172,0.21642298,92998.0,92980.0,0.01256766]
[1768828794570,0.11946196,92997.0,92980.0,0.01256766]
[1768828794871,0.01076,92989.0,92980.0,0.01256766]
[1768828795173,0.01076,92989.0,92975.0,0.22369071]
[1768828795365,0.01076,92989.0,92976.0,0.010762]
[1768828795565,0.01076,92989.0,92977.0,0.01297855]
[1768828796473,0.01076,92993.0,92977.0,0.01297855]
[1768828796774,0.01076,92993.0,92980.0,0.010761]
[1768828797873,0.21642298,92997.0,92977.0,0.01297855]
[1768828798673,0.01076,92992.0,92979.0,0.010762]
[1768828798969,0.18062994,92990.0,92979.0,0.010762]
[1768828799174,0.18062994,92990.0,92981.0,0.010761]
[1768828799763,0.18062994,92990.0,92978.0,0.010762]
[1768828800474,0.18062994,92990.0,92979.0,0.010762]
[1768828800673,0.18079125,93000.0,92983.0,0.21292871]
[1768828800974,0.18079125,93000.0,92989.0,0.01076]
[1768828801171,0.00016131,93000.0,92989.0,0.01076]
[1768828801475,0.09684,93001.0,92990.0,0.01076]
[1768828801673,0.107599,93001.0,92988.0,0.010761]
[1768828801876,0.18062994,93000.0,92988.0,0.010761]
[1768828802177,0.107599,93001.0,92989.0,0.01076]
[1768828802472,0.18062994,93000.0,92989.0,0.01076]
[1768828803574,0.18062994,93000.0,92990.0,0.01076]
[1768828805268,0.19138894,93000.0,92988.0,0.010761]
[1768828806873,0.19138894,93000.0,92985.0,0.00016131]
[1768828806874,0.18062994,93000.0,92985.0,0.00016131]
[1768828807278,0.010759,92998.0,92985.0,0.00016131]
[1768828807474,0.010759,92998.0,92985.0,0.01092231]
[1768828807775,0.01076,92990.0,92977.0,8.08e-05]
[1768828807977,0.18062994,92990.0,92977.0,0.01311865]
[1768828808271,0.18062994,92990.0,92977.0,0.01276607]
[1768828808778,0.18062994,92990.0,92977.0,8.08e-05]
[1768828808969,0.01076,92994.0,92977.0,8.08e-05]
[1768828809368,0.01076,92994.0,92980.0,0.010761]
[1768828811278,0.01076,92992.0,92980.0,0.010761]
[1768828811673,0.21642298,92988.0,92977.0,0.01280823]
[1768828811981,0.11946196,92985.0,92974.0,0.01250259]
[1768828812168,0.11946196,92985.0,92971.0,0.010762]
[1768828812169,0.18062994,92984.0,92971.0,0.010762]
[1768828812369,0.11946196,92985.0,92971.0,0.010762]
[1768828812678,0.11946196,92985.0,92971.0,0.01276959]
[1768828812878,8.146e-05,92984.0,92970.0,0.010763]
[1768828813183,0.01084246,92984.0,92970.0,0.010763]
[1768828813371,0.01084246,92984.0,92970.0,0.0236054]
[1768828814076,0.01084246,92984.0,92970.0,0.0128424]
[1768828814274,0.18062994,92980.0,92966.0,0.07741575]
[1768828814574,0.18062994,92980.0,92969.0,1e-08]
[1768828815381,0.18062994,92980.0,92969.0,0.01277552]
[1768828816078,0.010762,92979.0,92969.0,0.01277552]
[1768828816279,0.18062994,92980.0,92969.0,1e-08]
[1768828816674,0.11946196,92983.0,92969.0,1e-08]
[1768828816978,0.18062994,92980.0,92969.0,1e-08]
[1768828817283,8.146e-05,92984.0,92970.0,0.010763]
[1768828817785,0.010761,92983.0,92969.0,1e-08]
[1768828817982,0.11946196,92971.0,92957.0,0.07741575]
[1768828818179,0.11946196,92971.0,92956.0,0.09684]
[1768828818180,0.11946196,92967.0,92956.0,0.17425575]
[1768828818381,0.11946196,92967.0,92949.0,0.09913658]
[1768828818382,0.11946196,92965.0,92949.0,0.0992069]
[1768828818569,0.18062994,92960.0,92956.0,0.010764]
[1768828818873,0.11946196,92964.0,92949.0,0.0992069]
[1768828819073,0.11946196,92964.0,92955.0,0.010764]
[1768828819273,0.11946196,92964.0,92954.0,0.010764]
[1768828819583,0.11946196,92963.0,92953.0,0.010765]
[1768828819777,0.11946196,92962.0,92953.0,0.010765]
[1768828819984,0.11946196,92962.0,92954.0,0.010764]
[1768828820278,0.11946196,92960.0,92949.0,0.11191908]
[1768828820480,0.21642298,92959.0,92949.0,0.01507908]
[1768828820690,0.21642298,92959.0,92931.0,0.07741575]
[1768828820691,0.21642298,92954.0,92933.0,0.010767]
[1768828820980,0.21642298,92943.0,92910.0,0.09684]
[1768828821189,0.09696102,92933.0,92912.0,0.11914445]
[1768828821379,0.09696102,92945.0,92931.0,0.010767]
[1768828821581,0.09696102,92950.0,92935.0,0.010767]
[1768828821784,0.09696102,92950.0,92915.0,0.010769]
[1768828821785,0.09696102,92950.0,92932.0,0.11914445]
[1768828821987,0.04258203,92991.0,92952.0,0.010765]
[1768828822173,0.010761,92987.0,92956.0,0.010764]
[1768828822373,0.18062994,92970.0,92941.0,0.09684]
[1768828822579,0.27746994,92970.0,92948.0,0.010765]
[1768828822985,0.27746994,92970.0,92943.0,0.21292871]
[1768828822986,0.01080326,92969.0,92943.0,0.010766]
[1768828823185,0.18062994,92960.0,92943.0,0.010766]
[1768828823388,0.01333416,92962.0,92943.0,0.010766]
[1768828823889,0.18062994,92960.0,92943.0,0.010766]
[1768828824083,0.18062994,92960.0,92941.0,0.09684]
[1768828824386,0.18062994,92960.0,92943.0,0.010766]
[1768828824586,0.01349556,92962.0,92943.0,0.010766]
[1768828824782,0.18062994,92960.0,92943.0,0.010766]
[1768828824978,0.01349556,92962.0,92943.0,0.010766]
[1768828825284,0.27451729,92960.0,92941.0,0.09684]
[1768828825491,0.10641098,92955.0,92941.0,0.09684]
[1768828825688,0.09388735,92956.0,92942.0,0.010766]
[1768828825880,0.10641098,92960.0,92942.0,0.010766]
[1768828826079,0.09404875,92962.0,92945.0,0.010765]
[1768828826289,0.0001614,92962.0,92945.0,0.010765]
[1768828826488,0.10922031,92962.0,92942.0,0.10882525]
[1768828827091,0.10922031,92962.0,92941.0,0.19257398]
[1768828827589,0.10922031,92962.0,92943.0,0.010766]
[1768828827778,0.10922031,92962.0,92946.0,0.010765]
[1768828828790,0.20310766,92962.0,92946.0,0.010765]
[1768828828990,4.026e-05,92969.0,92952.0,0.20455923]
[1768828829178,4.026e-05,92969.0,92953.0,0.20455923]
[1768828829382,4.026e-05,92969.0,92963.0,0.010763]
[1768828829579,0.11039632,92978.0,92966.0,0.010763]
[1768828830085,0.11039632,92978.0,92962.0,0.010764]
[1768828831192,0.10984355,92983.0,92970.0,0.010763]
[1768828831380,0.002366,92984.0,92974.0,0.010762]
[1768828831586,0.002366,92984.0,92968.0,0.38518917]
[1768828831786,0.002366,92984.0,92970.0,0.38518917]
[1768828831987,0.002366,92984.0,92974.0,0.010762]
[1768828832184,0.10984355,92992.0,92970.0,0.27636392]
[1768828832390,0.09388735,92993.0,92972.0,0.20455923]
[1768828832691,0.20475394,92996.0,92980.0,0.010761]
[1768828833695,0.20475394,92996.0,92977.0,0.010762]
[1768828833886,0.01076,92995.0,92977.0,0.010762]
[1768828834082,0.09388735,92981.0,92964.0,0.09688]
[1768828834288,0.28970662,92980.0,92965.0,0.010763]
[1768828834487,0.010762,92978.0,92962.0,0.09688]
[1768828835090,0.18062994,92972.0,92950.0,0.38518917]
[1768828835298,0.18062994,92972.0,92950.0,0.48206917]
[1768828835592,0.10907668,92973.0,92951.0,0.10756157]
[1768828835797,0.010762,92972.0,92954.0,0.010764]
[1768828836193,0.11095895,92963.0,92944.0,0.010766]
[1768828836499,0.11095895,92955.0,92942.0,0.09684]
[1768828836689,0.18062994,92954.0,92942.0,0.09684]
[1768828836884,0.09388735,92954.0,92935.0,0.09684]
[1768828837192,0.2048463,92953.0,92939.0,0.0001614]
[1768828837585,0.010765,92952.0,92939.0,0.0001614]
[1768828839197,0.2048463,92953.0,92939.0,0.0001614]
[1768828839696,0.11092312,92952.0,92939.0,0.0001614]
[1768828839899,0.12168812,92952.0,92939.0,0.0001614]
[1768828840993,0.11092312,92952.0,92939.0,0.0001614]
[1768828841492,0.09388735,92953.0,92939.0,0.0001614]
[1768828841697,0.11092575,92951.0,92939.0,0.0001614]
[1768828843889,0.11092575,92951.0,92939.0,0.0109274]
[1768828844095,0.09307457,92952.0,92939.0,0.0109274]
[1768828844291,0.12266084,92955.0,92939.0,0.0109274]
[1768828844494,0.20877684,92954.0,92939.0,0.0109274]
[1768828844695,0.12266184,92953.0,92939.0,0.0109274]
[1768828844896,0.10096944,92939.0,92913.0,0.09688]
[1768828845096,0.11173444,92948.0,92931.0,0.010767]
[1768828845303,0.09688,92947.0,92931.0,0.010767]
[1768828845497,0.10096944,92945.0,92929.0,0.18062994]
[1768828845799,0.10096944,92950.0,92930.0,0.21053017]
[1768828846002,0.10113084,92955.0,92938.0,0.010766]
[1768828846196,0.09688,92954.0,92938.0,0.010766]
[1768828846393,0.010765,92953.0,92935.0,0.010767]
[1768828846592,0.0023669,92949.0,92935.0,0.010767]
[1768828850307,0.0023669,92949.0,92932.0,0.09175762]
[1768828850902,0.0023669,92949.0,92930.0,0.18062994]
[1768828850903,0.0023669,92949.0,92940.0,0.010766]
[1768828851108,0.0023669,92949.0,92937.0,0.010766]
[1768828851311,0.0023669,92949.0,92939.0,0.010766]
[1768828852309,0.0023669,92949.0,92934.0,0.21053017]
[1768828852310,0.0023669,92949.0,92940.0,0.010766]
[1768828853210,0.0023669,92949.0,92937.0,0.010766]
[1768828853406,0.0023669,92949.0,92939.0,0.010766]
[1768828853605,0.0023669,92949.0,92936.0,0.010767]
[1768828853810,0.0131319,92949.0,92935.0,0.010767]
[1768828854913,0.0023669,92949.0,92939.0,0.010766]
[1768828855111,0.0001614,92955.0,92948.0,0.010765]
[1768828855410,0.13522105,92965.0,92949.0,0.010765]
[1768828855411,0.09688,92961.0,92949.0,0.010765]
[1768828855800,0.010763,92964.0,92949.0,0.010765]
[1768828856000,0.13522105,92965.0,92945.0,0.09269329]
[1768828856200,0.010762,92978.0,92962.0,0.010764]
[1768828857514,0.10264398,92980.0,92960.0,0.19139394]
[1768828857714,0.10214048,92979.0,92960.0,0.19139394]
[1768828858222,0.010762,92976.0,92962.0,0.010764]
[1768828858618,0.010762,92979.0,92962.0,0.010764]
[1768828858801,0.03229735,92986.0,92972.0,0.010762]
[1768828859003,0.010761,92986.0,92969.0,0.010763]
[1768828859515,0.09880329,92971.0,92948.0,0.09269329]
[1768828859705,0.10956629,92971.0,92949.0,0.09688]
[1768828859910,0.10956629,92971.0,92955.0,0.010764]
[1768828860117,0.09880329,92971.0,92952.0,0.010765]
[1768828860509,0.010763,92969.0,92952.0,0.010765]
[1768828860710,0.010763,92969.0,92953.0,0.09688]
[1768828860908,0.010763,92967.0,92953.0,0.09688]
[1768828861111,0.010763,92967.0,92952.0,0.09688]
[1768828861112,0.010764,92963.0,92952.0,0.09688]
[1768828861414,0.09898336,92965.0,92952.0,0.09688]
[1768828861607,0.010763,92964.0,92952.0,0.09688]
[1768828862119,0.10974636,92970.0,92950.0,0.010765]
[1768828862312,0.10974636,92968.0,92949.0,0.0001614]
[1768828862511,0.10974636,92966.0,92949.0,0.0001614]
[1768828862817,0.010764,92962.0,92949.0,0.0001614]
[1768828863017,0.09898336,92966.0,92949.0,0.0001614]
[1768828863215,0.010764,92957.0,92949.0,0.0001614]
[1768828863714,0.09945394,92960.0,92949.0,4e-07]
[1768828863913,0.09945394,92958.0,92949.0,4e-07]
[1768828864411,0.09945394,92957.0,92949.0,4e-07]
[1768828864606,0.010765,92951.0,92949.0,4e-07]
[1768828864811,0.010765,92948.0,92934.0,0.107647]
[1768828865118,0.1113186,92948.0,92934.0,0.107647]
[1768828865313,0.010765,92946.0,92934.0,0.09688]
[1768828865518,0.1005536,92948.0,92928.0,0.10346029]
[1768828865703,0.010766,92945.0,92930.0,0.010767]
[1768828866920,0.010765,92948.0,92929.0,0.30656252]
[1768828867118,0.0001614,92962.0,92940.0,0.11462182]
[1768828867312,0.010765,92951.0,92941.0,0.09269329]
[1768828868021,0.010764,92960.0,92941.0,0.09269329]
[1768828868215,0.010765,92949.0,92941.0,0.09269329]
[1768828868421,0.11131925,92960.0,92941.0,0.09269329]
[1768828868619,0.10055525,92960.0,92941.0,0.09269329]
[1768828868820,0.010764,92958.0,92942.0,0.010766]
[1768828869223,0.010764,92956.0,92941.0,0.09269329]
[1768828869425,0.010765,92954.0,92941.0,0.09269329]
[1768828870418,0.10227323,92956.0,92934.0,0.09269329]
[1768828870722,0.010765,92951.0,92935.0,0.010767]
[1768828872321,0.010765,92949.0,92934.0,0.09269329]
[1768828872825,0.10470105,92955.0,92934.0,0.09269329]
[1768828873024,0.10470105,92954.0,92934.0,0.09269329]
[1768828873425,0.010765,92947.0,92934.0,0.09269329]
[1768828873725,0.10470105,92954.0,92934.0,0.09269329]
[1768828874417,0.010765,92952.0,92935.0,0.10346029]
[1768828874622,0.010765,92952.0,92935.0,0.21808211]
[1768828875017,0.010765,92950.0,92935.0,0.21808211]
[1768828875217,0.010765,92948.0,92935.0,0.20731511]
[1768828875526,0.1017404,92954.0,92935.0,0.09269329]
[1768828875826,0.010766,92945.0,92935.0,0.09269329]
[1768828876023,0.010766,92945.0,92930.0,0.11462182]
[1768828876223,0.010767,92937.0,92929.0,0.1919407]
[1768828876813,0.010767,92935.0,92929.0,0.00236741]
[1768828877026,0.1017404,92940.0,92929.0,4.1e-07]
[1768828877728,0.010767,92933.0,92929.0,4.1e-07]
[1768828878025,0.1017404,92940.0,92929.0,4.1e-07]
[1768828878026,0.010767,92930.0,92929.0,4.1e-07]
[1768828879413,0.010767,92933.0,92929.0,4.1e-07]
[1768828879630,0.010767,92932.0,92929.0,4.1e-07]
[1768828879930,0.010767,92935.0,92929.0,4.1e-07]
[1768828880319,0.010767,92933.0,92929.0,4.1e-07]
[1768828880730,0.0994894,92941.0,92929.0,4.1e-07]
[1768828880731,0.010767,92936.0,92929.0,4.1e-07]
[1768828881123,0.010767,92934.0,92929.0,4.1e-07]
[1768828881532,0.010767,92932.0,92929.0,4.1e-07]
[1768828882031,0.010767,92930.0,92920.0,0.09269329]
[1768828882231,0.09953521,92934.0,92914.0,0.09269329]
[1768828882830,0.09953521,92934.0,92914.0,0.10346229]
[1768828883130,0.10220997,92939.0,92918.0,0.010769]
[1768828883431,0.010767,92931.0,92918.0,0.20740978]